bitfinex/quotes_SOLUSD_20240712
["timestamp","ask_amount","ask_price","bid_price","bid_amount"]
[1720743975041,20.0,136.42,136.41,0.17]
[1720743975348,20.0,136.42,136.4,10.0]
[1720743975544,20.0,136.44,136.4,10.0]
[1720743976128,27.3292,136.44,136.39,0.34]
[1720743976357,36.2999,136.43,136.36,20.0]
[1720743976531,20.0,136.42,136.36,20.0]
[1720743977156,27.3303,136.42,136.36,20.0]
[1720743977528,20.0,136.42,136.38,10.0]
[1720743979255,20.0,136.42,136.37,0.34]
[1720743979638,20.0,136.42,136.39,10.0]
[1720743979838,20.0,136.42,136.41,10.0]
[1720743980563,20.0,136.42,136.39,10.0]
[1720743980736,20.0,136.43,136.39,10.0]
[1720743981846,28.97,136.45,136.4,10.0]
[1720743982036,44.4015,136.47,136.42,10.0]
[1720743982353,7.37586387,136.5,136.44,10.0]
[1720743982354,35.0535,136.49,136.44,10.0]
[1720743982565,35.0535,136.49,136.42,10.0]
[1720743982566,35.0535,136.49,136.43,0.17]
[1720743982766,7.327,136.48,136.43,0.17]
[1720743983061,7.327,136.48,136.41,10.17]
[1720743983235,7.327,136.48,136.42,0.17]
[1720743983437,37.63192085,136.49,136.44,10.0]
[1720743984358,44.95852085,136.49,136.42,20.17]
[1720743984561,37.63192085,136.49,136.44,10.0]
[1720743985058,20.0,136.48,136.44,10.0]
[1720743987438,27.3271,136.48,136.43,0.17]
[1720743987954,7.3278,136.47,136.43,0.17]
[1720743988143,7.3284,136.46,136.42,10.0]
[1720743988347,20.0,136.45,136.42,10.0]
[1720743988737,20.0,136.45,136.42,20.0]
[1720743988942,20.0,136.46,136.44,10.0]
[1720743989362,20.0,136.48,136.44,10.0]
[1720743989656,27.3271,136.48,136.42,20.0]
[1720743990044,27.3271,136.48,136.43,0.34]
[1720743990753,7.3279,136.47,136.42,10.0]
[1720743990955,27.3281,136.46,136.4,20.0]
[1720743991160,36.2987,136.45,136.4,20.0]
[1720743991464,20.0,136.44,136.4,20.0]
[1720743991662,20.0,136.44,136.4,10.0]
[1720743991868,20.0,136.44,136.38,10.0]
[1720743992164,28.97,136.43,136.38,10.0]
[1720743992537,36.2999,136.43,136.37,10.0]
[1720743992873,20.0,136.42,136.36,10.0]
[1720743993046,20.0,136.42,136.36,20.0]
[1720743993570,20.0,136.42,136.37,0.17]
[1720743993764,20.0,136.42,136.38,10.0]
[1720743996967,20.0,136.42,136.38,20.0]
[1720743997879,28.97,136.43,136.39,0.17]
[1720743998248,28.97,136.43,136.4,20.0]
[1720744000464,36.2983,136.46,136.41,0.17]
[1720744000773,20.0,136.45,136.41,0.17]
[1720744001078,27.3287,136.45,136.4,20.0]
[1720744001665,7.3292,136.44,136.39,0.34]
[1720744002158,20.0,136.43,136.39,0.17]
[1720744002358,20.0,136.43,136.38,10.0]
[1720744003656,20.0,136.43,136.4,10.0]
[1720744003889,20.0,136.44,136.4,10.0]
[1720744004072,20.0,136.45,136.4,10.0]
[1720744004565,20.0,136.45,136.41,0.17]
[1720744004751,31.59274569,136.46,136.42,10.0]
[1720744004951,31.59274569,136.46,136.43,0.17]
[1720744005982,20.0,136.45,136.43,0.17]
[1720744006182,20.0,136.45,136.42,10.0]
[1720744006367,20.0,136.45,136.41,10.0]
[1720744006552,20.0,136.45,136.4,10.0]
[1720744007966,20.0,136.45,136.42,10.0]
[1720744008980,20.0,136.45,136.43,0.17]
[1720744009202,15.9096,136.52,136.46,10.0]
[1720744009491,15.9096,136.52,136.47,0.17]
[1720744009682,31.56865618,136.53,136.48,10.0]
[1720744009986,15.0336,136.55,136.48,10.0]
[1720744010276,44.0036,136.55,136.5,10.0]
[1720744011058,28.97,136.55,136.5,10.0]
[1720744011295,28.97,136.55,136.52,10.0]
[1720744011457,2.58505797,136.57,136.52,10.0]
[1720744011657,35.5599,136.58,136.52,10.0]
[1720744011967,7.3218,136.58,136.52,10.0]
[1720744012267,7.3231,136.56,136.5,10.0]
[1720744012463,48.97,136.55,136.51,0.34]
[1720744012959,48.97,136.55,136.51,0.17]
[1720744013377,56.2936,136.55,136.51,0.17]
[1720744013584,2.55423454,136.58,136.52,10.0]
[1720744013761,28.97,136.57,136.52,10.0]
[1720744015070,20.0,136.56,136.52,10.0]
[1720744016387,20.0,136.56,136.53,0.17]
[1720744018295,20.0,136.56,136.52,10.0]
[1720744018812,28.97,136.53,136.52,10.0]
[1720744018964,48.97,136.53,136.52,10.17]
[1720744019165,48.97,136.53,136.5,10.0]
[1720744019361,48.97,136.53,136.48,20.0]
[1720744019590,20.0,136.52,136.48,20.0]
[1720744019770,20.0,136.52,136.5,10.0]
[1720744020284,28.97,136.53,136.52,10.0]
[1720744020498,48.97,136.53,136.52,10.17]
[1720744021193,48.97,136.53,136.52,10.34]
[1720744022671,48.97,136.53,136.5,20.0]
[1720744024397,48.97,136.53,136.5,10.0]
[1720744024987,48.97,136.53,136.5,20.0]
[1720744025681,48.97,136.53,136.52,10.0]
[1720744030204,48.97,136.53,136.52,10.34]
[1720744030796,48.97,136.53,136.52,10.0]
[1720744034314,48.97,136.53,136.49,10.0]
[1720744034596,20.0,136.52,136.49,10.0]
[1720744035382,28.97,136.5,136.47,10.0]
[1720744035583,20.0,136.49,136.47,10.0]
[1720744036441,28.97,136.5,136.49,10.0]
[1720744036590,28.97,136.5,136.49,20.17]
[1720744036777,28.97,136.5,136.49,20.34]
[1720744036979,28.97,136.53,136.49,20.34]
[1720744037186,20.0,136.52,136.5,0.34]
[1720744037379,20.0,136.52,136.51,10.0]
[1720744037604,20.0,136.52,136.51,10.34]
[1720744039818,20.0,136.52,136.51,10.0]
[1720744041283,28.97,136.53,136.51,10.34]
[1720744041488,28.97,136.57,136.53,10.0]
[1720744041707,20.0,136.56,136.53,10.0]
[1720744042094,28.97,136.54,136.53,10.0]
[1720744042307,48.97,136.54,136.53,10.0]
[1720744042694,48.97,136.54,136.52,0.34]
[1720744043007,20.0,136.53,136.52,0.34]
[1720744045115,20.0,136.53,136.52,45.34]
[1720744046810,28.97,136.54,136.53,10.0]
[1720744047003,20.0,136.54,136.53,10.34]
[1720744048220,28.97,136.57,136.55,10.0]
[1720744048521,20.0,136.56,136.55,10.0]
[1720744049717,20.0,136.56,136.53,10.34]
[1720744051208,20.0,136.56,136.55,10.0]
[1720744052100,20.0,136.56,136.55,10.17]
[1720744052296,20.0,136.56,136.55,10.34]
[1720744053020,28.97,136.57,136.55,65.34]
[1720744053216,28.97,136.6,136.57,10.0]
[1720744054621,20.0,136.59,136.57,10.0]
[1720744060628,9.89268454,136.61,136.55,10.34]
[1720744060629,2.57258454,136.61,136.6,10.0]
[1720744060838,44.2143,136.63,136.6,10.0]
[1720744061002,28.97,136.63,136.6,10.0]
[1720744061200,16.418,136.67,136.63,10.0]
[1720744061547,28.97,136.66,136.63,10.0]
[1720744063239,28.97,136.66,136.65,10.0]
[1720744063801,0.8546782,136.68,136.65,10.0]
[1720744064223,28.97,136.67,136.65,10.0]
[1720744064532,20.0,136.66,136.65,10.0]
[1720744064719,29.8246782,136.68,136.67,10.0]
[1720744065031,29.8246782,136.68,136.67,10.34]
[1720744065339,0.8546782,136.68,136.67,10.34]
[1720744065511,0.8546782,136.68,136.67,55.34]
[1720744065699,0.8546782,136.68,136.67,78.2235]
[1720744065902,0.8546782,136.68,136.67,79.68180482]
[1720744066429,0.73160449,136.75,136.74,10.0]
[1720744067514,0.73160449,136.75,136.74,55.0]
[1720744067717,0.73160449,136.75,136.74,10.0]
[1720744068737,29.70160449,136.75,136.72,10.0]
[1720744069209,29.70160449,136.75,136.74,10.0]
[1720744069410,20.73160449,136.75,136.74,10.0]
[1720744070030,20.73160449,136.75,136.72,10.0]
[1720744071125,28.97,136.73,136.72,10.0]
[1720744071427,48.97,136.73,136.7,20.0]
[1720744071626,20.0,136.72,136.7,10.0]
[1720744071818,20.0,136.72,136.7,20.0]
[1720744072627,20.0,136.72,136.7,10.0]
[1720744072824,28.97,136.71,136.7,10.0]
[1720744073337,48.97,136.71,136.7,10.0]
[1720744073739,48.97,136.71,136.68,10.0]
[1720744073955,48.97,136.71,136.7,10.0]
[1720744075034,48.97,136.71,136.7,20.0]
[1720744075212,28.97,136.71,136.7,20.17]
[1720744075421,28.97,136.74,136.73,10.0]
[1720744076031,44.519,136.78,136.76,10.0]
[1720744076539,28.97,136.77,136.76,10.0]
[1720744077539,0.73160449,136.8,136.78,10.0]
[1720744077765,0.73160449,136.8,136.79,10.17]
[1720744078344,0.8546782,136.81,136.8,10.0]
[1720744078551,0.8546782,136.81,136.8,56.8015627]
[1720744078934,0.8546782,136.81,136.8,10.34]
[1720744079253,0.8546782,136.81,136.8,55.34]
[1720744079650,0.8546782,136.81,136.8,56.80171169]
[1720744083459,0.8546782,136.81,136.8,55.34]
[1720744084967,0.8546782,136.81,136.8,10.0]
[1720744087261,0.8546782,136.81,136.8,55.17]
[1720744087461,0.8546782,136.81,136.8,94.325665]
[1720744087857,0.8546782,136.81,136.8,95.78719115]
[1720744088171,0.8546782,136.81,136.8,95.95719115]
[1720744092066,0.8546782,136.95,136.92,10.0]
[1720744092267,28.97,136.93,136.92,10.0]
[1720744093763,28.97,136.93,136.92,10.17]
[1720744094367,28.97,136.93,136.92,10.0]
[1720744095054,48.97,136.93,136.92,10.0]
[1720744095369,56.2734,136.93,136.9,10.0]
[1720744095557,36.274,136.91,136.89,10.0]
[1720744095753,48.97,136.9,136.89,10.0]
[1720744099375,20.0,136.9,136.89,10.0]
[1720744100175,20.0,136.9,136.88,10.0]
[1720744100362,36.2751,136.89,136.88,10.0]
[1720744100564,36.2751,136.89,136.87,10.0]
[1720744100766,20.0,136.88,136.87,10.0]
[1720744101880,20.0,136.88,136.83,20.0]
[1720744102175,28.97,136.86,136.83,20.0]
[1720744102678,20.0,136.85,136.83,20.0]
[1720744103271,48.97,136.85,136.83,20.0]
[1720744103573,20.0,136.85,136.83,20.0]
[1720744104180,20.0,136.85,136.83,10.0]
[1720744104477,27.3073,136.85,136.83,10.0]
[1720744105473,27.3073,136.85,136.81,10.0]
[1720744105661,28.97,136.82,136.81,10.0]
[1720744105873,48.97,136.82,136.81,10.0]
[1720744107579,48.97,136.82,136.8,39.155665]
[1720744107785,27.3094,136.81,136.8,39.155665]
[1720744110866,48.81,136.81,136.8,39.155665]
[1720744112088,56.1194,136.81,136.8,39.155665]
[1720744112668,20.0,136.81,136.8,39.155665]
[1720744112884,48.81,136.81,136.8,39.155665]
[1720744113191,56.1194,136.81,136.8,39.155665]
[1720744113367,56.1194,136.81,136.8,36.96214483]
[1720744113567,20.0,136.81,136.8,46.96214483]
[1720744113872,48.81,136.81,136.8,46.96214483]
[1720744114963,28.97,136.82,136.8,46.96214483]
[1720744115173,28.97,136.82,136.81,10.34]
[1720744115379,28.97,136.82,136.81,56.11900344]
[1720744115805,28.97,136.82,136.81,56.8015655]
[1720744116107,28.97,136.82,136.81,55.34]
[1720744118698,28.97,136.82,136.81,10.0]
[1720744120797,28.97,136.82,136.81,10.9116379]
[1720744121309,28.97,136.82,136.81,55.9116379]
[1720744121482,28.97,136.82,136.81,56.80165312]
[1720744121803,28.97,136.82,136.81,55.34]
[1720744127896,28.97,136.82,136.81,10.0]
[1720744128984,28.97,136.82,136.81,10.17]
[1720744129185,28.97,136.82,136.81,55.34]
[1720744138723,28.97,136.82,136.81,10.0]
[1720744139907,28.97,136.82,136.81,10.17]
[1720744140215,28.97,136.82,136.81,55.34]
[1720744141906,28.97,136.82,136.81,10.0]
[1720744144123,28.97,136.82,136.81,10.17]
[1720744144702,28.97,136.82,136.81,55.17]
[1720744145421,28.97,136.82,136.81,55.34]
[1720744150036,6.2249,136.87,136.86,20.0]
[1720744152701,28.76,136.88,136.86,20.0]
[1720744153234,34.9043,136.91,136.9,10.0]
[1720744156435,44.2671,136.92,136.9,20.0]
[1720744156938,15.5071,136.92,136.9,20.0]
[1720744157437,28.76,136.91,136.9,10.0]
[1720744159311,28.76,136.91,136.88,20.0]
[1720744159816,6.557,136.9,136.88,20.0]
[1720744160743,6.557,136.9,136.88,10.0]
[1720744165854,6.557,136.9,136.86,20.0]
[1720744166028,28.76,136.87,136.86,20.0]
[1720744167533,28.76,136.87,136.86,10.0]
[1720744167949,15.3943,136.86,136.83,10.0]
[1720744168155,28.76,136.84,136.83,10.0]
[1720744168838,28.76,136.84,136.81,10.0]
[1720744173747,20.0,136.83,136.8,47.13214483]
[1720744173955,28.76,136.81,136.8,47.13214483]
[1720744174156,28.76,136.81,136.8,46.96214483]
[1720744178142,28.76,136.87,136.85,10.0]
[1720744178652,20.0,136.86,136.85,10.0]
[1720744179442,12.78231264,136.92,136.85,20.0]
[1720744179638,40.6493782,136.95,136.91,10.0]
[1720744179639,28.76,136.93,136.91,10.0]
[1720744180273,28.76,136.93,136.91,20.0]
[1720744180632,28.76,136.93,136.91,10.0]
[1720744182731,28.76,136.93,136.87,10.0]
[1720744182732,28.76,136.92,136.87,10.0]
[1720744183036,28.76,136.88,136.84,10.0]
[1720744183347,28.76,136.88,136.85,10.0]
[1720744186050,28.76,136.88,136.86,10.0]
[1720744186241,28.76,136.88,136.85,10.0]
[1720744186431,28.76,136.88,136.86,10.0]
[1720744187038,28.76,136.88,136.87,10.0]
[1720744187355,48.76,136.88,136.87,10.0]
[1720744187962,48.76,136.88,136.85,10.0]
[1720744188464,48.76,136.88,136.86,10.0]
[1720744188834,28.76,136.88,136.87,10.0]
[1720744189141,48.76,136.88,136.87,10.0]
[1720744189948,48.76,136.88,136.85,10.0]
[1720744193170,56.0657,136.88,136.85,10.0]
[1720744193472,48.76,136.88,136.86,10.0]
[1720744193647,48.76,136.88,136.87,10.0]
[1720744193848,20.0,136.88,136.87,10.0]
[1720744194047,48.76,136.88,136.87,10.0]
[1720744194576,48.76,136.88,136.86,20.0]
[1720744195343,28.76,136.88,136.86,20.0]
[1720744197851,28.76,136.88,136.87,45.34]
[1720744198975,28.76,136.91,136.9,20.0]
[1720744200677,18.83411967,136.95,136.92,10.0]
[1720744200850,28.76,136.93,136.9,20.0]
[1720744201045,20.0,136.92,136.9,20.0]
[1720744201944,20.0,136.92,136.88,10.0]
[1720744202274,20.0,136.92,136.86,20.0]
[1720744202275,28.76,136.89,136.86,20.0]
[1720744202472,36.0651,136.89,136.86,20.0]
[1720744202775,71.95,136.87,136.86,20.0]
[1720744202977,14.39,136.87,136.86,20.0]
[1720744203370,71.95,136.87,136.84,20.0]
[1720744203560,7.3083,136.83,136.8,56.96214483]
[1720744203758,14.39,136.81,136.8,46.96214483]
[1720744204077,34.39,136.81,136.78,10.0]
[1720744204251,28.78,136.79,136.78,10.0]
[1720744204791,28.8,136.79,136.78,10.0]
[1720744204964,28.8,136.79,136.78,20.0]
[1720744205564,28.8,136.83,136.8,20.0]
[1720744205762,20.0,136.82,136.8,20.0]
[1720744206163,9.98784735,136.88,136.83,10.0]
[1720744206364,28.8,136.85,136.82,10.0]
[1720744206979,28.8,136.85,136.81,10.0]
[1720744207174,28.8,136.85,136.82,10.0]
[1720744209683,28.8,136.85,136.81,10.0]
[1720744210786,28.8,136.82,136.8,10.0]
[1720744211298,28.8,136.82,136.81,10.0]
[1720744211591,20.0,136.82,136.8,10.0]
[1720744211990,20.0,136.84,136.8,10.0]
[1720744212290,28.8,136.82,136.8,10.0]
[1720744214104,28.8,136.82,136.78,10.0]
[1720744214391,20.0,136.81,136.78,10.0]
[1720744215484,20.0,136.81,136.79,10.0]
[1720744215685,20.0,136.81,136.79,55.17]
[1720744215890,28.8,136.82,136.8,10.0]
[1720744216197,20.0,136.81,136.79,10.0]
[1720744217068,20.0,136.81,136.78,10.0]
[1720744217398,28.8,136.79,136.78,10.0]
[1720744217769,48.8,136.79,136.78,10.0]
[1720744218183,48.8,136.79,136.75,20.0]
[1720744220777,48.8,136.79,136.75,10.0]
[1720744220981,48.8,136.79,136.75,20.0]
[1720744221192,48.8,136.79,136.75,10.0]
[1720744221404,48.8,136.79,136.71,10.0]
[1720744221405,28.8,136.76,136.71,10.0]
[1720744221632,42.02,136.79,136.73,20.0]
[1720744221633,20.0,136.79,136.73,20.0]
[1720744221900,48.8,136.78,136.77,10.0]
[1720744222078,28.8,136.78,136.77,10.0]
[1720744222494,28.8,136.78,136.75,20.0]
[1720744223381,28.8,136.78,136.75,10.0]
[1720744223588,28.8,136.78,136.75,20.0]
[1720744223775,28.8,136.78,136.75,10.0]
[1720744224297,28.8,136.78,136.73,20.0]
[1720744224505,20.0,136.77,136.73,20.0]
[1720744224709,20.0,136.77,136.75,10.0]
[1720744224999,28.8,136.78,136.77,10.0]
[1720744225482,28.8,136.78,136.77,20.34]
[1720744225687,28.8,136.78,136.77,20.17]
[1720744225901,28.8,136.78,136.77,20.0]
[1720744226208,28.8,136.78,136.77,65.0]
[1720744226377,28.8,136.78,136.77,65.34]
[1720744227499,35.81558126,136.84,136.8,10.0]
[1720744227500,28.8,136.81,136.8,10.0]
[1720744227918,28.8,136.86,136.83,10.0]
[1720744228615,28.8,136.86,136.81,20.0]
[1720744228916,36.1068,136.86,136.81,20.0]
[1720744229128,28.8,136.86,136.81,20.0]
[1720744229293,28.8,136.83,136.81,10.0]
[1720744229502,20.0,136.82,136.79,10.0]
[1720744232625,20.0,136.82,136.78,0.17]
[1720744232923,20.0,136.82,136.79,10.0]
[1720744233319,20.0,136.82,136.79,20.0]
[1720744234803,20.0,136.82,136.8,0.17]
[1720744235213,20.0,136.84,136.8,0.17]
[1720744235419,28.8,136.82,136.78,0.17]
[1720744235618,20.0,136.81,136.78,45.34]
[1720744235827,20.0,136.81,136.78,45.17]
[1720744236218,20.0,136.81,136.78,0.17]
[1720744236510,20.0,136.81,136.77,20.0]
[1720744237826,20.0,136.81,136.79,10.0]
[1720744239229,20.0,136.81,136.78,0.17]
[1720744239525,27.3094,136.81,136.77,20.0]
[1720744240613,20.0,136.81,136.78,45.17]
[1720744241015,20.0,136.81,136.79,10.0]
[1720744241343,20.0,136.81,136.77,20.0]
[1720744243236,28.8,136.79,136.77,10.0]
[1720744243644,28.8,136.79,136.77,20.0]
[1720744246113,28.8,136.79,136.77,10.0]
[1720744246434,28.8,136.79,136.77,20.0]
[1720744247146,28.8,136.79,136.77,10.0]
[1720744247351,36.1104,136.79,136.75,20.0]
[1720744247545,20.0,136.78,136.75,20.0]
[1720744248036,27.311,136.78,136.75,10.0]
[1720744248232,28.8,136.76,136.73,10.0]
[1720744248920,28.8,136.76,136.72,10.0]
[1720744249439,20.0,136.75,136.72,10.0]
[1720744249743,20.0,136.75,136.71,10.0]
[1720744249744,28.8,136.73,136.69,10.0]
[1720744249943,28.8,136.73,136.67,10.0]
[1720744249944,36.1138,136.73,136.67,20.0]
[1720744250254,20.0,136.75,136.67,20.0]
[1720744250255,28.8,136.7,136.67,20.0]
[1720744250938,28.8,136.7,136.65,10.0]
[1720744251130,36.1154,136.7,136.65,10.0]
[1720744251321,28.8,136.66,136.62,10.0]
[1720744252440,20.0,136.65,136.61,10.0]
[1720744253322,20.0,136.65,136.62,10.0]
[1720744253538,20.0,136.65,136.63,10.0]
[1720744254351,20.0,136.65,136.64,10.0]
[1720744254657,28.8,136.66,136.64,10.0]
[1720744255344,28.8,136.69,136.64,10.0]
[1720744255556,20.0,136.68,136.64,10.0]
[1720744256126,27.3165,136.68,136.64,10.0]
[1720744256349,20.0,136.68,136.64,10.0]
[1720744256954,27.3164,136.68,136.64,10.0]
[1720744257652,20.0,136.68,136.64,10.0]
[1720744258235,27.3164,136.68,136.64,10.0]
[1720744258452,20.0,136.68,136.64,10.0]
[1720744258754,28.8,136.69,136.64,20.0]
[1720744259051,52.4491,136.73,136.66,20.0]
[1720744259254,28.8,136.71,136.66,20.0]
[1720744259429,28.8,136.71,136.68,10.0]
[1720744259630,28.8,136.71,136.68,20.0]
[1720744260052,2.68539208,136.73,136.7,10.0]
[1720744260354,2.68539208,136.73,136.68,10.0]
[1720744260355,36.1138,136.73,136.68,20.0]
[1720744260840,28.8,136.73,136.7,10.0]
[1720744261033,36.1138,136.73,136.68,20.0]
[1720744261235,28.8,136.73,136.68,20.0]
[1720744261433,20.0,136.72,136.7,20.0]
[1720744261680,28.8,136.73,136.7,20.0]
[1720744261955,28.8,136.78,136.72,20.0]
[1720744261956,28.8,136.76,136.72,20.0]
[1720744262257,28.8,136.76,136.71,45.34]
[1720744262258,28.8,136.76,136.74,20.0]
[1720744262753,13.5401,136.81,136.77,10.0]
[1720744262955,28.8,136.81,136.77,10.0]
[1720744263637,28.8,136.81,136.76,10.0]
[1720744263854,7.3103,136.8,136.76,10.0]
[1720744264038,36.111,136.78,136.73,20.0]
[1720744264350,20.0,136.77,136.74,45.34]
[1720744264550,20.0,136.77,136.75,10.0]
[1720744265339,20.0,136.77,136.73,20.0]
[1720744265747,20.0,136.77,136.75,10.0]
[1720744266278,20.0,136.77,136.73,20.0]
[1720744266484,20.0,136.77,136.75,10.0]
[1720744266841,20.0,136.77,136.74,0.17]
[1720744267046,27.3116,136.77,136.73,20.0]
[1720744267751,36.1129,136.75,136.73,10.0]
[1720744267964,20.0,136.74,136.73,10.0]
[1720744268163,20.0,136.74,136.71,10.0]
[1720744268370,20.0,136.74,136.73,10.0]
[1720744268676,28.8,136.78,136.73,20.0]
[1720744268884,20.0,136.77,136.73,20.0]
[1720744270775,20.0,136.77,136.71,10.0]
[1720744271154,7.3129,136.75,136.7,10.0]
[1720744271470,20.0,136.74,136.7,10.0]
[1720744272370,27.3132,136.74,136.7,10.0]
[1720744272686,28.8,136.73,136.69,10.0]
[1720744272983,28.8,136.73,136.71,10.0]
[1720744272984,20.0,136.72,136.71,10.0]
[1720744273175,28.8,136.73,136.71,10.0]
[1720744273480,36.1121,136.76,136.71,10.0]
[1720744273767,20.0,136.75,136.71,10.0]
[1720744274080,27.3127,136.75,136.71,20.0]
[1720744274276,7.3134,136.74,136.71,20.0]
[1720744274454,48.8,136.73,136.71,10.0]
[1720744274783,28.8,136.73,136.71,10.0]
[1720744274955,20.0,136.75,136.72,10.0]
[1720744275356,20.0,136.76,136.72,10.0]
[1720744276461,20.0,136.76,136.71,10.0]
[1720744276662,36.113,136.75,136.71,10.0]
[1720744276884,20.0,136.74,136.71,10.0]
[1720744277081,27.3132,136.74,136.71,10.0]
[1720744277369,20.0,136.74,136.72,10.0]
[1720744277586,2.69636573,136.78,136.72,10.0]
[1720744277587,10.00746573,136.78,136.74,10.0]
[1720744277770,20.0,136.77,136.74,10.0]
[1720744277955,7.3128,136.75,136.71,10.0]
[1720744278153,36.1128,136.75,136.71,10.0]
[1720744279059,28.8,136.75,136.71,10.0]
[1720744279259,36.1126,136.75,136.71,10.0]
[1720744279460,20.0,136.74,136.7,10.34]
[1720744279668,27.3134,136.74,136.69,10.0]
[1720744279876,7.3137,136.73,136.69,10.0]
[1720744280173,20.0,136.72,136.69,10.0]
[1720744280886,20.0,136.72,136.68,10.0]
[1720744281880,20.0,136.72,136.69,10.0]
[1720744282076,20.0,136.73,136.69,10.0]
[1720744282254,20.0,136.74,136.69,11.46315807]
[1720744282455,20.0,136.74,136.69,20.0]
[1720744282656,20.0,136.74,136.71,10.0]
[1720744282867,20.0,136.75,136.73,10.0]
[1720744283072,20.0,136.75,136.73,20.0]
[1720744283457,28.8,136.76,136.73,20.0]
[1720744284070,36.1114,136.78,136.73,20.0]
[1720744284864,20.0,136.77,136.73,20.0]
[1720744285059,48.8,136.77,136.75,10.0]
[1720744285269,2.63658289,136.79,136.77,10.0]
[1720744285471,28.8,136.83,136.79,10.0]
[1720744285880,7.3092,136.82,136.79,10.0]
[1720744286080,7.3094,136.81,136.78,10.0]
[1720744287085,27.3102,136.8,136.76,0.34]
[1720744287290,27.3102,136.8,136.75,10.0]
[1720744287783,20.0,136.8,136.75,10.0]
[1720744288296,20.0,136.8,136.74,10.17]
[1720744288467,7.3105,136.79,136.74,10.17]
[1720744288779,20.0,136.8,136.75,10.0]
[1720744289200,27.3103,136.8,136.74,10.17]
[1720744289479,7.3112,136.78,136.73,10.0]
[1720744289689,20.0,136.77,136.73,10.0]
[1720744289896,20.0,136.77,136.74,10.0]
[1720744290482,20.0,136.79,136.74,10.0]
[1720744291181,27.3104,136.79,136.74,10.0]
[1720744292180,20.0,136.79,136.73,10.0]
[1720744292385,7.3118,136.77,136.73,10.0]
[1720744292687,20.0,136.76,136.73,10.0]